Cogmind - Beta 13 @@@ ROGUE MODE // 2024.04.13 @ 23:11:16 Player: Kooltone Result: Destroyed by Y-54 Guardian with Gatling Laser Performance ------------- Evolutions (3) 1500 Regions Visited (6) 1200 Robots Destroyed (53) 265 Value Destroyed (1581) 1581 Prototype IDs (1) 20 Alien Tech Used (0) 0 Bonus (0) 0 TOTAL SCORE: 4566 Bonus ------- None Cogmind --------- Core Integrity 0/700 Matter 204/300 Energy 19/100 System Corruption 0% Temperature Cool (88) Movement Core (400) Ox7 Location -7/Storage Parts ------- > --- POWER (2) -------- (None) > --- PROPULSION (3) --- (None) > --- UTILITY (5) ------ Medium Storage Unit Armor Integrity Analyzer Reactive Plating > --- WEAPON (3) ------- Gatling Laser > --- INVENTORY (10) --- Long-range Tractor Beam Autogun Peak State ------------ > --- POWER ------------ Improved Ion Engine Light Nuclear Core > --- PROPULSION ------- Titanium Leg Titanium Leg Titanium Leg > --- UTILITY ---------- Medium Storage Unit Terrain Scanner Seismic Detector Armor Integrity Analyzer Improved Medium Armor Plating > --- WEAPON ----------- Advanced Beam Rifle Heavy Particle Cannon Assault Cannon > --- INVENTORY -------- Light Nuclear Core Carbon-fiber Leg Medium Storage Unit Improved Medium Armor Plating Reactive Plating Long-range Tractor Beam Gatling Laser Gatling Laser Autogun Scythe [Rating: 38] Favorites ----------- Power Light Ion Engine Engine Light Ion Engine Power Core Light Nuclear Core Propulsion Carbon-fiber Leg Leg Carbon-fiber Leg Utility Seismic Detector Device Seismic Detector Storage Medium Storage Unit Processor Terrain Scan Processor Protection Improved Medium Armor Plating Weapon Assault Rifle Energy Gun Particle Gun Energy Cannon Heavy Particle Cannon Ballistic Gun Assault Rifle Ballistic Cannon Assault Cannon Slashing Weapon Scythe Build | -11 -10 -9 -9 -8 -7 -7 ------- Run | Yrd Mat Mat Min Mat Fac Sto Slots Evolved 6 | . . 2 . 2 2 . Power 1 | . . . . . 1 . Propulsion 1 | . . . . 1 . . Utility 3 | . . 2 . . 1 . Weapon 1 | . . . . 1 . . Parts Attached 79 | 9 4 27 . 16 8 15 Power 14 | 1 1 5 . 3 3 1 Engine 11 | 1 1 5 . 3 1 . Core 3 | . . . . . 2 1 Reactor . | . . . . . . . Propulsion 28 | 2 2 10 . 11 1 2 Treads . | . . . . . . . Leg 28 | 2 2 10 . 11 1 2 Wheel . | . . . . . . . Hover . | . . . . . . . Flight . | . . . . . . . Utility 14 | 2 1 3 . . 2 6 Device 3 | 1 . 1 . . 1 . Storage 5 | 1 1 1 . . . 2 Processor 2 | . . 1 . . . 1 Hackware . | . . . . . . . Protection 4 | . . . . . 1 3 Artifact . | . . . . . . . Weapon 23 | 4 . 9 . 2 2 6 Energy Gun 8 | 1 . 3 . . 1 3 Energy Cannon 1 | . . . . . 1 . Ballistic Gun 9 | 3 . 6 . . . . Ballistic Cannon 3 | . . . . 2 . 1 Launcher . | . . . . . . . Special Weapon . | . . . . . . . Impact Weapon . | . . . . . . . Slashing Weapon 2 | . . . . . . 2 Piercing Weapon . | . . . . . . . Special Melee Weapon . | . . . . . . . Unidentified Prototypes . | . . . . . . . Parts Lost 28 | . . 4 . 6 2 16 Power 7 | . . 2 . 1 1 3 Propulsion 8 | . . 2 . 2 . 4 Utility 5 | . . . . . 1 4 Weapon 8 | . . . . 3 . 5 Highest Loss Streak 13 | . . 4 . 2 1 13 To Critical Strikes . | . . . . . . . Average Slot Usage (%) 98 | . 100 99 100 98 97 94 Engine 10 | . 14 10 11 9 11 5 Leg 24 | . 28 22 22 26 22 21 Device 17 | . 14 22 22 18 15 13 Storage 10 | . 14 11 11 9 7 7 Processor 7 | . . 11 11 9 6 7 Protection 1 | . . . . . 6 7 Energy Gun 4 | . . 3 11 5 7 6 Energy Cannon 1 | . . . . . 6 6 Ballistic Gun 13 | . 28 18 11 8 . . Ballistic Cannon 5 | . . . . 11 7 4 Naked Turns . | . . . . . . . Heaviest Build 48 | 13 18 21 21 34 48 44 Greatest Support 51 | 20 20 30 30 51 51 51 Greatest Overweight (x) 7 | 3 . . . 1 . 7 Average Overweight (x) . | . . . . . . . Largest Inventory Capacity 10 | 8 10 10 10 10 10 10 Average Capacity 9 | 7 8 10 10 10 10 10 Most Carried 10 | 8 10 10 10 10 9 10 Average Carried 9 | 5 8 9 10 9 6 9 Final Capacity 10 | 8 10 10 10 10 10 10 Final Carried 10 | 8 10 10 10 10 9 2 Class Distribution -------------------- 40% | Mutant 22% | Scavenger-Skirmisher 15% | Skirmisher 14% | Scavenger-Mutant 6% | Gunner Dominant Class ---------------- Mutant | -10/Materials Mutant | -9/Materials Scavenger-Mutant | -9/Mines Scavenger-Skirmisher | -8/Materials Skirmisher | -7/Factory Gunner | -7/Storage Resources | -11 -10 -9 -9 -8 -7 -7 ----------- Run | Yrd Mat Mat Min Mat Fac Sto Matter Collected 1477 | 280 116 488 . 420 95 78 Remotely . | . . . . . . . Salvage Created 2054 | 76 267 708 . 629 89 285 Parts 112 | 6 21 36 . 27 6 16 Haulers Intercepted . | . . . . . . . Recyclers Shooed 1 | . . . . 1 . . Parts Field Recycled . | . . . . . . . Retrieved Matter . | . . . . . . . Parts Self-Destructed . | . . . . . . . Prevented . | . . . . . . . Kills | -11 -10 -9 -9 -8 -7 -7 ------- Run | Yrd Mat Mat Min Mat Fac Sto Combat Hostiles Destroyed 38 | . 5 14 . 10 4 5 Melee 2 | . . . . . . 2 Guns 26 | . 5 14 . 5 1 1 Cannons 8 | . . . . 4 3 1 AOE 2 | . . . . 1 . 1 Classes Destroyed 12 | 2 3 3 . 3 . 1 Worker 4 | . . . . 2 . 2 Builder 1 | . 1 . . . . . Tunneler 1 | 1 . . . . . . Recycler 4 | 1 . 2 . 1 . . Mechanic 1 | . . 1 . . . . Watcher 4 | . 1 1 . 2 . . Swarmer 9 | . . 5 . . 4 . Grunt 20 | . 5 7 . 6 . 2 Brawler 1 | . . . . 1 . . Duelist 1 | . . . . 1 . . Sentry 6 | . . 2 . 2 . 2 Programmer 1 | . . . . . . 1 Best Kill Streak 5 | 2 4 5 . 4 4 5 Combat Bots Only 4 | . 3 4 . 2 4 4 Max Kills in Single Turn 3 | 1 1 1 . 3 1 3 Gunslinging . | . . . . . . . Exploded 1 | . . . . 1 . 1 Melee 1 | . . . . . . 1 Uniques/NPCs Destroyed . | . . . . . . . Combat | -11 -10 -9 -9 -8 -7 -7 -------- Run | Yrd Mat Mat Min Mat Fac Sto Hostile Shots Fired 692 | . 22 86 . 109 44 431 Missed 248 | . 10 28 . 41 11 158 Damage Taken 4591 | . 136 593 . 1088 460 2314 Core 917 | . . 84 . 128 111 594 Absorbed by Shields . | . . . . . . . Ignored by Resistances 51 | . . . . . . 51 Core Remaining (%) 88 | 100 100 . 79 76 . . Volleys Fired 135 | 12 16 55 . 38 8 6 Largest 3 | 1 2 2 . 3 3 3 Hottest 180 | 50 40 90 . 132 180 180 Shots Fired 284 | 12 32 107 . 102 18 13 Gun 222 | 12 32 107 . 60 5 6 Cannon 62 | . . . . 42 13 7 Launcher . | . . . . . . . Special . | . . . . . . . Kinetic 191 | . 32 68 . 80 8 3 Thermal 93 | 12 . 39 . 22 10 10 Explosive . | . . . . . . . Electromagnetic . | . . . . . . . Robot Hit Streak 11 | 2 9 11 . 7 3 4 Robot Miss Streak 5 | 2 2 5 . 4 4 1 Penetration Max . | . . . . . . . Secondary Targets 2 | . 1 1 . . . . Max Gunslinging Chain 1 | . 1 1 . . . . Shots Hit Robots 170 | 7 23 59 . 58 7 16 Core Hits 92 | 3 12 31 . 27 4 15 Critical Kills . | . . . . . . . Critical Parts Destroyed 2 | . . 1 . 1 . . Critical Strikes 12 | 1 . 3 . 3 1 4 Burn 3 | 1 . 2 . . . . Destroy 2 | . . 1 . 1 . . Blast 4 | . . . . 2 1 1 Sever 3 | . . . . . . 3 Melee Attacks 9 | . . . . . . 9 Impact . | . . . . . . . Slashing 9 | . . . . . . 9 Piercing . | . . . . . . . Sneak Attacks 1 | . . . . . . 1 Combat Hostiles . | . . . . . . . Follow-up Attacks . | . . . . . . . Damage Inflicted 3581 | 87 300 837 . 1483 168 706 Guns 1912 | 87 300 837 . 571 20 97 Cannons 981 | . . . . 712 148 121 Explosions 391 | . . . . 186 . 205 Melee 283 | . . . . . . 283 Ramming 14 | . . . . 14 . . Kinetic 2066 | . 300 557 . 1115 73 21 Thermal 827 | 87 . 280 . 168 95 197 Explosive 205 | . . . . . . 205 Electromagnetic 186 | . . . . 186 . . Impact . | . . . . . . . Slashing 283 | . . . . . . 283 Piercing . | . . . . . . . Highest Corruption 1 | . . 1 1 1 . . Average Corruption 1 | . . 1 1 1 . . Corruption Purged . | . . . . . . . Corruption Blocked . | . . . . . . . Effects 8 | . . 4 2 2 . . Message Errors 2 | . . . 1 1 . . Matter Fused 2 | . . 2 . . . . Energy Discharges 2 | . . 2 . . . . Data Loss (minor) 1 | . . . 1 . . . Misfires 1 | . . . . 1 . . Overload Shots . | . . . . . . . Overflow Damage 29 | . . . . 29 . . Projectiles 25 | . . . . 25 . . Explosions 4 | . . . . 4 . . Melee . | . . . . . . . Knockbacks 9 | . . . . 7 2 . Impact . | . . . . . . . Kinetic 8 | . . . . 6 2 . Secondary 1 | . . . . 1 . . Self-Inflicted Damage 78 | . . . . 26 . 52 Shots 2 | . . . . 1 . 1 Rammed . | . . . . . . . Targets Rammed 5 | . . . . 5 . . Kicked 5 | . . . . 5 . . Crushed . | . . . . . . . Highest Temperature 382 | 90 . 105 . 327 382 379 Average Temperature 90 | 38 . 39 . 86 182 164 Received Heat Transfer 1683 | . 72 213 . 648 . 750 Effects 2 | . . . . . 1 1 Short Circuit 2 | . . . . . 1 1 Siege Activations . | . . . . . . . Robots Corrupted . | . . . . . . . Combat Hostiles . | . . . . . . . Parts Fried . | . . . . . . . Impact Corruptions . | . . . . . . . Robots Melted . | . . . . . . . Combat Hostiles . | . . . . . . . Parts Melted 1 | . . 1 . . . . Heat Transferred 2149 | 333 . 914 . 407 148 347 Parts Sabotaged . | . . . . . . . Parts Stolen . | . . . . . . . Parts Stripped . | . . . . . . . Power Chain Reactions 1 | . . . . 1 . . Alert | -11 -10 -9 -9 -8 -7 -7 ------- Run | Yrd Mat Mat Min Mat Fac Sto Peak Influence 433 | 10 116 312 121 433 291 212 Initial 196 | . 6 44 121 46 196 127 Average 111 | 3 45 72 121 156 229 135 Maximum Alert Level 2 | . . 1 . 2 1 1 Low Security (%) 82 | 100 100 93 100 60 55 98 Level 1 16 | . . 6 . 36 44 1 Level 2 . | . . . . 2 . . Level 3 . | . . . . . . . Level 4 . | . . . . . . . Level 5 . | . . . . . . . High Security . | . . . . . . . Max Security . | . . . . . . . Squads Dispatched 9 | . 3 1 . 2 1 2 Investigation 1 | . 1 . . . . . Extermination 1 | . . . . . . 1 Reinforcement 7 | . 2 1 . 2 1 1 Assault . | . . . . . . . Garrison . | . . . . . . . Intercept . | . . . . . . . Searches Triggered . | . . . . . . . Construction Impeded . | . . . . . . . Haulers Reinforced . | . . . . . . . Active Scanning Responses . | . . . . . . . Cargo Convoy Interrupts . | . . . . . . . Stealth | -11 -10 -9 -9 -8 -7 -7 --------- Run | Yrd Mat Mat Min Mat Fac Sto Distress Signals 9 | . 3 . . 5 1 . Communications Jammed . | . . . . . . . Distress Signals . | . . . . . . . Times Spotted 94 | . 17 20 . 39 6 12 Peak Tracking Total 9 | . 5 5 . 9 5 9 Tactical Retreats 21 | . 2 5 . 13 . 1 Traps | -11 -10 -9 -9 -8 -7 -7 ------- Run | Yrd Mat Mat Min Mat Fac Sto Traps Triggered 3 | . 1 2 . . . . Indirectly . | . . . . . . . Trap Hack Attempts . | . . . . . . . Triggered . | . . . . . . . Disarmed . | . . . . . . . Reprogrammed . | . . . . . . . Reused . | . . . . . . . Traps Extracted . | . . . . . . . Installed . | . . . . . . . Triggered . | . . . . . . . Machines | -11 -10 -9 -9 -8 -7 -7 ---------- Run | Yrd Mat Mat Min Mat Fac Sto Machines Disabled 6 | . . . . 4 1 1 Max in Single Turn 2 | . . . . 2 1 1 Machines Repaired . | . . . . . . . Machines Dismantled . | . . . . . . . Machines Sabotaged . | . . . . . . . Overloaded Fab Kills . | . . . . . . . Hacking | -11 -10 -9 -9 -8 -7 -7 --------- Run | Yrd Mat Mat Min Mat Fac Sto Machines Accessed 2 | . . 1 . 1 . . Terminals 1 | . . 1 . . . . Fabricators . | . . . . . . . Repair Stations . | . . . . . . . Recycling Units . | . . . . . . . Scanalyzers 1 | . . . . 1 . . Garrison Access . | . . . . . . . Total Hacks 5 | . . 1 . 4 . . Successful 4 | . . 1 . 3 . . Failed 1 | . . . . 1 . . Catastrophic . | . . . . . . . Database Lockouts . | . . . . . . . Manual . | . . . . . . . Terminals 1 | . . 1 . . . . Fabricators . | . . . . . . . Repair Stations . | . . . . . . . Recycling Units . | . . . . . . . Scanalyzers 4 | . . . . 4 . . Garrison Access . | . . . . . . . Terminal Hacks 1 | . . 1 . . . . Record 1 | . . 1 . . . . Fabricator Hacks . | . . . . . . . Repair Station Hacks . | . . . . . . . Recycling Unit Hacks . | . . . . . . . Scanalyzer 3 | . . . . 3 . . Insert Component 2 | . . . . 2 . . Analyze 1 | . . . . 1 . . Garrison Access Hacks . | . . . . . . . Unauthorized Hacks . | . . . . . . . Terminals . | . . . . . . . Fabricators . | . . . . . . . Repair Stations . | . . . . . . . Recycling Units . | . . . . . . . Scanalyzers . | . . . . . . . Garrison Access . | . . . . . . . Data Cores Recovered . | . . . . . . . Used . | . . . . . . . Hacking Detections 1 | . . . . 1 . . Full Trace Events 1 | . . . . 1 . . Feedback Events . | . . . . . . . Feedback Blocked . | . . . . . . . Robot Schematics Acquired . | . . . . . . . Robots Built . | . . . . . . . Authchips . | . . . . . . . Time . | . . . . . . . Total Robot Build Rating . | . . . . . . . Part Schematics Acquired . | . . . . . . . Parts Built . | . . . . . . . Authchips . | . . . . . . . Time . | . . . . . . . Total Part Build Rating . | . . . . . . . Parts Repaired . | . . . . . . . Time . | . . . . . . . Parts Recycled . | . . . . . . . Recycled Matter . | . . . . . . . Retrieved Matter . | . . . . . . . Retrieved Components . | . . . . . . . Parts Scanalyzed 1 | . . . . 1 . . Part Schematics Acquired . | . . . . . . . Parts Damaged . | . . . . . . . Bothacking | -11 -10 -9 -9 -8 -7 -7 ------------ Run | Yrd Mat Mat Min Mat Fac Sto Used RIF Installer . | . . . . . . . Robots Hacked . | . . . . . . . Non-combat . | . . . . . . . Combat . | . . . . . . . Robot Hacks Applied . | . . . . . . . Relay Couplers Released . | . . . . . . . Fabnet Peak Effective % . | . . . . . . . Robots Rewired . | . . . . . . . Allies Hacked . | . . . . . . . Hacks Repelled . | . . . . . . . Allies | -11 -10 -9 -9 -8 -7 -7 -------- Run | Yrd Mat Mat Min Mat Fac Sto Total Allies . | . . . . . . . Largest Group . | . . . . . . . Highest-Rated Group . | . . . . . . . Highest-Rated Ally . | . . . . . . . Total Orders . | . . . . . . . Ally Attacks . | . . . . . . . Total Damage . | . . . . . . . Kills . | . . . . . . . Allies Corrupted . | . . . . . . . Allies Melted . | . . . . . . . Intel | -11 -10 -9 -9 -8 -7 -7 ------- Run | Yrd Mat Mat Min Mat Fac Sto Robot Analysis Total . | . . . . . . . Derelict Logs Recovered 1 | . . . 1 . . . Drone Launches . | . . . . . . . Drone Recoveries . | . . . . . . . Exploration | -11 -10 -9 -9 -8 -7 -7 ------------- Run | Yrd Mat Mat Min Mat Fac Sto Turns Passed 4466 | 148 716 1175 210 1558 219 440 Spaces Moved 2186 | 82 418 419 152 862 114 139 Core 10 | 8 . . . . . 2 Treads . | . . . . . . . Legs 2176 | 74 418 419 152 862 114 137 Wheels . | . . . . . . . Hover . | . . . . . . . Flight . | . . . . . . . Fastest Speed 50 | 50 120 120 120 120 130 126 Average Speed 121 | 119 120 120 120 121 130 130 Slowest Speed 400 | 200 120 120 120 190 130 400 Overloaded Moves . | . . . . . . . Propulsion Burnouts . | . . . . . . . Robots Hopped . | . . . . . . . Cave-ins Triggered . | . . . . . . . Exploration Rate (%) 27 | 5 43 33 40 38 3 32 Regions Visited 6 Branch Regions 2 Pre-discovered Areas . | . . . . . . . Known Exits Taken . | . . . . . . . Unknown Exits Taken 6 | 1 1 1 1 1 1 . Scrap Searched . | . . . . . . . Spaces Dug . | . . . . . . . Terrain Destroyed 23 | . . . . 8 . 15 Melee . | . . . . . . . Projectile 5 | . . . . 5 . . AOE 18 | . . . . 3 . 15 Terrain Rammed . | . . . . . . . Walls Destroyed . | . . . . . . . Machines Disabled . | . . . . . . . Actions | -11 -10 -9 -9 -8 -7 -7 --------- Run | Yrd Mat Mat Min Mat Fac Sto Total 3728 | 115 604 984 179 1305 170 371 Wait 1232 | 5 147 455 28 361 36 200 Move 2180 | 81 417 418 151 861 113 139 Hop . | . . . . . . . Pick Up 46 | 8 10 12 . 11 4 1 Fast Attach 12 | 7 . 4 . . 1 . Attach 26 | . . 6 . 6 6 8 Detach . | . . . . . . . Swap 41 | 2 4 17 . 10 1 7 Drop 42 | . 10 17 . 13 1 1 Fire 135 | 12 16 55 . 38 8 6 Melee 9 | . . . . . . 9 Ram . | . . . . . . . Kick 5 | . . . . 5 . . Crush . | . . . . . . . Escape Stasis . | . . . . . . . Rewire . | . . . . . . . Trap . | . . . . . . . Miscellaneous . | . . . . . . . Route ------- -11/Scrapyard -10/Materials -9/Materials -9/Mines -8/Materials -7/Factory -7/Storage History --------- Turn | Location | Event 23 | -11/Scrapyard | Discovered new exit (range 15) 149 | -11/Scrapyard | Entered Materials 312 | -10/Materials | Build established: Mutant 850 | -10/Materials | Discovered new exit (range 13) 865 | -10/Materials | Entered another Materials area 865 | -9/Materials | Evolved 2 slots: Utility x2 1885 | -9/Materials | Lost 4 parts (2p2n) 1999 | -9/Materials | Discovered new exit (range 11) 2040 | -9/Materials | Build established: Scavenger-Mutant 2040 | -9/Materials | Entered Mines 2052 | -9/Mines | Learned Materials stockpile data 2228 | -9/Mines | YI-UF0 nonchalantly dropped a Grenade Launcher on the ground 2241 | -9/Mines | Discovered new exit (range 8) 2250 | -9/Mines | Entered Materials 2250 | -8/Materials | Evolved 2 slots: Propulsion x1, Weapon x1 2557 | -8/Materials | Build established: Scavenger-Skirmisher 3533 | -8/Materials | Build established: Skirmisher 3782 | -8/Materials | Discovered new exit (range 16) 3808 | -8/Materials | Entered Factory 3808 | -7/Factory | Evolved 2 slots: Power x1, Utility x1 3989 | -7/Factory | Discovered new exit (range 13) 4027 | -7/Factory | Entered Storage 4310 | -7/Storage | Build established: Gunner 4412 | -7/Storage | Lost 3 parts (2p1u) 4450 | -7/Storage | Core integrity fell below 50% 4459 | -7/Storage | Core integrity fell below 20% 4467 | -7/Storage | Destroyed by Y-54 Guardian with Gatling Laser Last Messages --------------- R-06 Scavenger collects Wheel. Hvy. Particle Cannon destroyed. Seismic Detector destroyed. Titanium Leg broken. Overheating: Short circuit. Imp. Medium Armor Plating destroyed. Lgt. Nuclear Core destroyed. R-06 Scavenger collects Med. Matter Pod. Y-54 Guardian destroyed. U-05 Engineer builds a Door. Broken Titanium Leg destroyed. Assault Cannon destroyed. Compression Vault explodes. Titanium Leg destroyed. Scythe destroyed. U-05 Engineer builds a Wall. Gatling Laser destroyed. Adv. Beam Rifle destroyed. Dropped Med. Storage Unit. U-05 Engineer builds a Wall. Map ----- +----------------------------------------------------+ | ?????????????????????????????????????????? | | ?????????????????????????????????????????? | | ?????????????????????????????????????????? | | ?????????????????????????????????????????? | | ???????????????????????????????#?????????? | | ?????????????????????????????????????????? | | ?????????????????????????????????????????? | | ?????????????????????????????????????????# | | ???????????????????####?????????????????? | | ???????????????????# ?????????????????? | | ??###??????????????# ????????????????? | | ??#"""?????????????# ##???????????#????? | | ??#"Y"?????????????# #????????#####????## | | # #" "########?????# ^########## ####### | | # [/ #?????# # | | #"" """ ## +?????# # | | #"T """ ## #?????# ########## # | | #"" """ ## #?????# #????????# # [ | | # ## ##???## ##???????# + ] | | # """ # ##### #???????# # % ! | | # """ + ###????## # / | | # """ # ! + ?# # | | # # #####u ###! ?# # | | ?########## # # ##?????# ####### | | ????? # o Y #?????# #???#?? | | ???????? + Y !@ #?????# #?????? | | ?????? ???# %Y= #?????# #?????? | | ??????????# =%* !#?????# #?????? | | ??????????# !%%! #?????+ +?????? | | ??????????# =[ #?????# #?????? | | ??????????# ! #?????# +?????? | | ??????????# # #######?????# ??????? | | ??????????# #######???????????? ???#??? | | ??????????# T???????????????????????????# | | ??????????# #???????????????????????????# | | ??????????""""???????????????????????????? | | ?????????????????????????????????????????? | | ?????????????????????????????????????????? | | ?????????????????????????????????????????? | | ?????????????????????????????????????????? | | ?????????????????????????????????????????? | | ?????????????????????????????????????????? | | ?????????????????????????????????????????? | | ?????????????????????????????????????????? | | ?????????????????????????????????????????? | | ?????????????????????????????????????????? | | ?????????????????????????????????????????? | | ?????????????????????????????????????????? | | | | | +----------------------------------------------------+ Best States ------------- Heat Dissipation 34 Energy Generation 21 Energy Capacity 440 Matter Stores 300 Matter Capacity 300 Sight Range 16 Terrain Scan Range 14 Terrain Scan Density 85 Armor Coverage 450 Evasion (%) 55 Armor Integrity Analysis 30 Item Schematics ----------------- None Robot Schematics ------------------ None Fabricated ------------ Nothing Alien Tech Used ----------------- None Achievements -------------- Safety First Challenges ------------ None Game ------ Seed BurstClaymoresCloak Manual? 0 Play Time 01:29:53 Cumulative 10.1 hours Start 2024.04.13 @ 21:36:52 End 2024.04.13 @ 23:11:16 Sessions 1 Manual Loads 0 Difficulty Rogue Special Mode None Game No. 15 Rogue 15 Adventurer 0 Explorer 0 Win Type - Total 0 Types 0/0/0/0/0/0/0/0/0 Lore% 11 Gallery% 10 Achievement% 10 Wizard Run 0 Options --------- Layout 1 ASCII 0 Keyboard 0 Movement Arrows Keybinds 0 Fullscreen 1 Font 16/Terminus Map View 25x20 Zoom Use 63% Tactical HUD 0 Map Filters NONE Filters NONE Steam SD RUN: 37d9e62c-3161-429f-aacc-b080ef0847c6